bitfinex/quotes_ETHUSD_20250406
["timestamp","ask_amount","ask_price","bid_price","bid_amount"]
[1743959856007,0.55,1723.3,1722.9,4.06287]
[1743959856518,8.67422,1723.3,1722.9,4.06287]
[1743959856816,4.06236,1723.2,1722.8,5.57333]
[1743959857016,4.61247,1723.1,1722.7,4.06338]
[1743959857222,4.61244,1723.1,1722.7,4.06322]
[1743959857582,0.55,1722.9,1722.6,47.35621]
[1743959857820,0.55,1722.9,1722.4,5.58154]
[1743959857821,0.55,1722.7,1722.4,5.58154]
[1743959858143,0.55,1722.5,1722.3,4.06414]
[1743959858283,0.55,1722.7,1722.3,4.622314]
[1743959858485,4.6134,1722.7,1722.3,4.622314]
[1743959858730,4.6134,1722.7,1722.4,4.06397]
[1743959858731,0.55,1722.7,1722.4,4.06397]
[1743959858895,4.61339,1722.7,1722.3,4.622314]
[1743959859492,0.55,1722.5,1722.2,1.5176]
[1743959859827,0.55,1722.7,1722.4,4.06409]
[1743959859980,0.55,1722.7,1722.4,8.12804]
[1743959860190,0.55,1722.8,1722.5,4.06383]
[1743959860385,0.55,1722.8,1722.5,4.06371]
[1743959862113,4.61318,1722.8,1722.4,4.06409]
[1743959862321,0.55,1722.6,1722.3,4.06432]
[1743959862813,0.55,1722.6,1722.2,5.58215]
[1743959863012,4.61371,1722.6,1722.2,5.58215]
[1743959863214,4.61371,1722.6,1722.2,9.64657]
[1743959863419,0.55,1722.6,1722.3,4.06433]
[1743959864121,0.55,1722.7,1722.4,4.06403]
[1743959864722,0.55,1722.7,1722.3,4.06433]
[1743959864910,4.61348,1722.7,1722.3,4.06433]
[1743959865111,4.06373,1722.6,1722.2,5.58214]
[1743959865417,0.55,1722.3,1722.0,47.46854]
[1743959865605,0.55,1722.2,1721.8,4.0655]
[1743959865823,7.67754728,1722.2,1721.9,4.06524]
[1743959866016,6.12224728,1722.2,1721.9,4.06515]
[1743959866329,6.12224728,1722.2,1722.1,4.0648]
[1743959866530,5.57224728,1722.2,1722.1,4.0648]
[1743959866722,5.57224728,1722.2,1722.1,5.7064]
[1743959867031,5.57224728,1722.9,1722.6,4.06353]
[1743959867327,11.18976728,1723.2,1722.7,4.06323]
[1743959867514,11.18976728,1723.2,1722.5,1.6416]
[1743959867515,7.12754728,1723.2,1722.9,4.06278]
[1743959867721,7.12754728,1723.2,1722.7,4.06336]
[1743959867722,11.18984728,1723.2,1722.7,4.06336]
[1743959867919,4.06244,1723.1,1722.7,4.06336]
[1743959868134,0.55,1722.9,1722.6,4.06361]
[1743959868521,4.61294,1722.9,1722.5,5.70545]
[1743959868721,8.67606,1722.9,1722.5,4.06385]
[1743959869034,8.67606,1722.9,1722.3,54.30071]
[1743959869035,0.55,1722.7,1722.3,43.4176]
[1743959869202,7.06245,1723.1,1722.6,4.06359]
[1743959869400,7.06245,1723.1,1722.7,4.0633]
[1743959869801,0.55,1723.0,1722.7,4.0633]
[1743959870225,4.6127,1723.0,1722.6,4.06359]
[1743959870426,0.55,1723.0,1722.6,4.876203]
[1743959870603,0.55,1723.0,1722.6,4.06346]
[1743959870804,0.55,1723.0,1722.7,4.06336]
[1743959871226,4.61279,1723.0,1722.6,4.06346]
[1743959871840,0.55,1723.0,1722.7,4.06328]
[1743959872134,11.18986728,1723.2,1722.8,4.06313]
[1743959872537,5.57224728,1723.2,1722.9,4.06272]
[1743959872737,4.0625,1723.1,1722.7,5.68819]
[1743959873035,4.61286,1723.0,1722.6,4.06362]
[1743959873331,0.55,1723.0,1722.7,4.06338]
[1743959873531,0.55,1723.0,1722.6,4.06349]
[1743959873731,0.55,1723.0,1722.5,4.06384]
[1743959873732,4.61287,1723.0,1722.5,4.06384]
[1743959873940,0.55,1722.8,1722.5,4.06384]
[1743959874136,0.55,1722.8,1722.5,1.409457]
[1743959874338,0.55,1722.4,1722.0,5.68984]
[1743959874549,6.22415,1722.3,1721.9,4.06527]
[1743959874852,0.55,1722.0,1721.7,4.06563]
[1743959875535,0.55,1722.1,1721.8,4.06543]
[1743959875740,0.55,1721.9,1721.6,41.776]
[1743959875943,0.55,1721.8,1721.5,4.06605]
[1743959876259,4.61531,1721.9,1721.5,4.06605]
[1743959876760,4.06504,1722.0,1721.5,4.06605]
[1743959876761,0.55,1722.0,1721.5,0.813249]
[1743959876913,0.55,1722.0,1721.5,4.06621]
[1743959877314,4.06536,1721.9,1721.5,4.06621]
[1743959877516,4.61566,1721.8,1721.4,4.06644]
[1743959877759,0.55,1721.8,1721.5,4.06621]
[1743959878058,0.55,1721.8,1721.4,4.06644]
[1743959878260,4.06585,1721.7,1721.3,1.6249]
[1743959878427,0.55,1721.6,1721.3,4.06667]
[1743959878618,0.55,1721.6,1721.2,4.06692]
[1743959878819,5.59954,1721.5,1721.1,4.06716]
[1743959879141,0.55,1721.4,1721.0,45.84339]
[1743959879334,8.68325,1721.4,1721.0,45.84339]
[1743959879527,0.55,1721.2,1720.9,0.30273844]
[1743959879741,4.61708,1721.2,1720.9,0.30273844]
[1743959880561,5.60056,1721.1,1720.9,0.30273844]
[1743959880779,0.55,1721.0,1720.9,0.30273844]
[1743959881244,4.6174,1721.0,1720.9,0.30273844]
[1743959881445,12.9667,1721.0,1720.9,0.30273844]
[1743959882175,17.47154728,1721.0,1720.5,0.55]
[1743959882358,4.61834,1720.6,1720.5,0.55]
[1743959882556,20.00658728,1720.6,1720.5,0.55]
[1743959882752,21.53988728,1720.6,1720.5,0.55]
[1743959883680,5.57224728,1720.6,1720.5,4.61858]
[1743959883983,8.3503,1721.2,1720.5,1.011858]
[1743959884169,7.10554728,1721.4,1721.0,4.06727]
[1743959884561,7.10554728,1721.4,1721.0,4.06721]
[1743959884755,7.10554728,1721.4,1721.1,4.06706]
[1743959884957,7.10554728,1721.4,1721.2,4.06688]
[1743959884958,5.57224728,1721.4,1721.2,4.06688]
[1743959885169,5.57224728,1721.4,1721.1,4.06706]
[1743959885365,9.63869728,1721.4,1721.0,5.67298]
[1743959885566,0.55,1721.3,1721.0,1.6057]
[1743959885876,5.57224728,1721.4,1721.1,4.06706]
[1743959886086,5.57224728,1721.4,1721.3,4.06669]
[1743959886289,4.06579,1721.7,1721.4,4.06638]
[1743959886290,5.57224728,1721.7,1721.4,4.06638]
[1743959886448,6.816,1722.1,1721.6,4.06598]
[1743959886649,7.10554728,1722.1,1721.4,5.67192]
[1743959886980,0.55,1721.4,1721.0,8.1346]
[1743959887286,0.55,1721.4,1721.0,9.62976]
[1743959887480,0.55,1721.4,1721.0,5.56245]
[1743959887985,0.55,1721.4,1721.1,4.06706]
[1743959888188,12.38924728,1721.7,1721.3,4.06659]
[1743959888482,5.57224728,1721.7,1721.6,4.06598]
[1743959888686,7.10554728,1722.1,1721.7,4.06566]
[1743959888889,0.55,1722.0,1721.7,4.06566]
[1743959889085,7.10554728,1722.1,1721.8,4.06549]
[1743959889255,11.17044728,1722.1,1721.7,4.06566]
[1743959890463,0.55,1722.0,1721.7,4.06566]
[1743959890666,0.55,1722.0,1721.8,4.06544]
[1743959890984,0.55,1722.0,1721.8,4.06533]
[1743959891482,0.55,1722.0,1721.7,4.69119891]
[1743959892347,0.55,1722.0,1721.7,0.62545891]
[1743959892554,0.55,1722.0,1721.8,4.06541]
[1743959892975,0.55,1722.0,1721.7,4.69115891]
[1743959893159,0.55,1722.0,1721.7,4.0657]
[1743959893377,0.55,1722.0,1721.6,4.06576]
[1743959893571,4.61512,1722.0,1721.6,8.13157]
[1743959893784,0.55,1722.0,1721.6,8.13157]
[1743959894093,0.55,1722.0,1721.7,4.06569]
[1743959894386,4.61508,1722.0,1721.6,5.039487]
[1743959894586,4.61508,1722.0,1721.6,4.06576]
[1743959894773,0.55,1721.8,1721.4,4.06623]
[1743959894957,4.61555,1721.8,1721.4,4.06623]
[1743959895689,4.61612,1721.6,1721.2,4.06691]
[1743959895860,0.55,1721.6,1721.3,4.06652]
[1743959896055,0.55,1721.6,1721.4,4.06635]
[1743959896259,5.57224728,1721.7,1721.6,4.06598]
[1743959896467,0.55,1721.8,1721.4,5.73263]
[1743959897089,4.6156,1721.8,1721.4,5.73263]
[1743959897291,0.55,1721.8,1721.6,4.06588]
[1743959897589,0.55,1721.8,1721.7,4.06574]
[1743959897987,0.55,1721.8,1721.5,4.06611]
[1743959898173,4.61552,1721.8,1721.4,5.73265]
[1743959898375,4.61552,1721.8,1721.3,4.06652]
[1743959898583,4.61552,1721.8,1721.4,4.06629]
[1743959898974,0.55,1721.6,1721.3,4.06667]
[1743959899171,4.61608,1721.6,1721.1,4.06712]
[1743959899373,0.55,1721.4,1721.1,8.13415]
[1743959899609,0.55,1721.4,1721.2,4.06684]
[1743959899815,0.55,1721.4,1721.1,4.06703]
[1743959900102,0.55,1721.4,1721.2,4.06684]
[1743959900291,0.55,1721.7,1721.3,8.13322]
[1743959900488,0.55,1721.7,1721.4,4.06634]
[1743959900801,0.55,1721.7,1721.4,4.06629]
[1743959901687,7.13174728,1721.8,1721.3,4.06669]
[1743959901870,6.12224728,1721.8,1721.7,4.06574]
[1743959902201,6.12224728,1721.8,1721.4,1.6472]
[1743959902202,5.57224728,1721.8,1721.6,4.06597]
[1743959902500,5.57224728,1721.8,1721.5,4.06611]
[1743959903893,5.57224728,1721.8,1721.5,4.06607]
[1743959904799,5.57224728,1721.8,1721.4,5.71364]
[1743959904800,0.55,1721.7,1721.4,4.06643]
[1743959905108,0.55,1721.7,1721.4,4.06635]
[1743959905937,0.55,1721.7,1721.2,6.37662918]
[1743959906239,5.57224728,1721.8,1721.5,4.06604]
[1743959908020,0.55,1721.7,1721.4,8.13275]
[1743959908423,0.55,1721.7,1721.4,4.0663]
[1743959908718,0.55,1721.7,1721.4,8.13267]
[1743959908924,0.55,1721.7,1721.4,8.13265]
[1743959909125,0.55,1721.7,1721.5,4.06621]
[1743959909339,0.55,1721.7,1721.6,4.06598]
[1743959910220,5.57224728,1721.8,1721.6,4.06586]
[1743959911139,5.57224728,1721.8,1721.5,4.06621]
[1743959911433,5.57224728,1721.8,1721.5,8.13228]
[1743959911636,5.57224728,1721.8,1721.6,4.06595]
[1743959911835,5.57224728,1721.8,1721.6,8.13179]
[1743959912045,5.57224728,1721.8,1721.6,4.879019]
[1743959912234,5.57224728,1721.8,1721.6,4.06584]
[1743959912414,5.57224728,1721.8,1721.7,4.06574]
[1743959913011,0.55,1721.9,1721.7,4.60687993]
[1743959913329,0.55,1721.8,1721.7,0.54113993]
[1743959913642,4.61551,1721.8,1721.7,0.54113993]
[1743959913844,4.06513,1722.0,1721.7,0.54113993]
[1743959914039,4.06537,1721.9,1721.7,0.54113993]
[1743959914342,0.55,1721.9,1721.7,0.54113993]
[1743959914519,0.55,1721.9,1721.7,4.06564]
[1743959914867,5.57224728,1722.3,1721.7,0.81896896]
[1743959915011,5.57224728,1722.3,1722.0,4.06489]
[1743959915414,5.57224728,1722.3,1722.0,8.12981]
[1743959915644,5.57224728,1722.3,1722.0,4.06489]
[1743959916040,5.57224728,1722.3,1722.1,4.06474]
[1743959916241,4.06394,1722.5,1722.1,4.06465]
[1743959916453,5.66234,1722.6,1722.2,4.06454]
[1743959916629,5.66234,1722.6,1722.2,4.06447]
[1743959916954,5.57224728,1722.8,1722.6,4.06346]
[1743959917155,7.08734728,1723.1,1722.7,5.70163]
[1743959917363,7.08734728,1723.1,1722.7,5.70159]
[1743959917731,7.08734728,1723.1,1722.8,4.06304]
[1743959917926,4.06199,1723.3,1722.9,4.0629]
[1743959918130,4.06199,1723.3,1722.7,1.69634086]
[1743959918131,4.06223,1723.2,1722.7,5.70167]
[1743959918339,4.06223,1723.2,1722.7,9.76495]
[1743959918544,4.06223,1723.2,1722.8,4.06305]
[1743959918840,0.55,1723.1,1722.8,4.06305]
[1743959919063,4.06223,1723.2,1722.8,4.06305]
[1743959919468,4.06263,1723.1,1722.7,1.6383]
[1743959919664,0.55,1723.0,1722.7,1.6383]
[1743959919865,0.55,1723.0,1722.6,4.06342]
[1743959920258,0.55,1723.0,1722.5,12.50615]
[1743959920259,4.06305,1722.9,1722.5,1.6383]
[1743959920470,2.0651,1723.0,1722.5,1.6383]
[1743959920634,4.06358,1722.7,1722.3,5.70262]
[1743959920974,8.12716,1722.7,1722.2,4.06456]
[1743959921185,8.12716,1722.7,1722.2,8.18700715]
[1743959921360,0.55,1722.5,1722.2,4.06439]
[1743959921544,0.55,1722.4,1722.1,1.6383]
[1743959921739,0.55,1722.4,1722.1,5.70307]
[1743959923073,4.06446,1722.3,1721.9,1.6383]
[1743959923273,4.06489,1722.1,1721.7,47.495]
[1743959923472,0.55,1722.0,1721.9,4.06527]
[1743959924060,0.55,1722.3,1722.0,4.06503]
[1743959924764,0.55,1722.3,1721.9,4.06527]
[1743959924966,4.61434,1722.3,1721.9,8.13045]
[1743959925186,0.55,1722.3,1721.9,4.06518]
[1743959925380,0.55,1722.3,1722.0,4.06495]
[1743959925691,4.61435,1722.3,1721.8,4.06534]
[1743959925841,8.67887,1722.3,1721.9,4.06516]
[1743959926042,4.61506,1722.0,1721.7,41.791]
[1743959926264,0.55,1722.0,1721.7,45.85674]
[1743959926458,4.61505,1722.0,1721.7,41.791]
[1743959926676,0.55,1721.8,1721.7,41.791]
[1743959927046,0.55,1721.8,1721.5,9.77059]
[1743959927495,0.55,1721.8,1721.6,4.06594]
[1743959927659,0.55,1721.8,1721.6,8.13176]
[1743959927845,0.55,1722.0,1721.7,4.06574]
[1743959929187,4.61519,1722.0,1721.6,4.06596]
[1743959929693,0.55,1721.7,1721.3,4.06651]
[1743959929985,4.61576,1721.7,1721.3,5.62621]
[1743959930189,4.06607,1721.6,1721.2,4.06691]
[1743959930390,0.55,1721.5,1721.2,4.06691]
[1743959931494,0.55,1721.5,1721.2,4.06679]
[1743959931993,0.55,1721.5,1721.2,4.06677]
[1743959932363,0.55,1721.5,1721.3,4.06669]
[1743959932895,0.55,1721.6,1721.3,4.06669]
[1743959933096,0.55,1721.6,1721.2,4.06677]
[1743959933097,0.55,1721.6,1721.4,4.0663]
[1743959934381,0.55,1721.7,1721.5,4.06622]
[1743959934888,4.61551,1721.8,1721.5,4.06622]
[1743959935386,0.55,1721.8,1721.5,4.06607]
[1743959936290,12.5207,1722.1,1721.7,4.06566]
[1743959936489,5.7247,1722.1,1721.7,4.06559]
[1743959936859,4.06509,1722.0,1721.6,4.06596]
[1743959937350,0.55,1721.8,1721.5,5.65789]
[1743959937752,0.55,1721.8,1721.5,5.65782]
[1743959938255,0.55,1721.8,1721.6,4.06597]
[1743959938790,5.72462,1722.1,1721.7,4.06574]
[1743959938991,4.61514,1722.0,1721.6,4.06596]
[1743959939295,0.55,1722.0,1721.7,4.06572]
[1743959939609,0.55,1722.0,1721.8,4.06551]
[1743959939907,0.55,1722.0,1721.7,4.06564]
[1743959940071,0.55,1722.0,1721.7,4.06559]
[1743959940273,5.57224728,1722.2,1721.7,0.406559]
[1743959940471,5.57224728,1722.2,1722.1,4.0648]
[1743959940802,9.64453,1722.5,1722.1,4.0648]
[1743959941211,0.55,1722.4,1722.2,4.06454]
[1743959941378,8.58045,1722.5,1722.1,4.0648]
[1743959941573,1.5165,1722.5,1721.9,5.6943]
[1743959941781,0.55,1722.0,1721.7,4.06564]
[1743959943214,0.55,1722.0,1721.7,4.06559]
[1743959943794,0.55,1722.0,1721.8,4.06546]
[1743959944306,0.55,1721.8,1721.5,5.69541]
[1743959944507,0.55,1721.8,1721.6,4.1238894]
[1743959944725,0.55,1722.0,1721.7,4.06574]
[1743959945197,8.68025,1722.0,1721.6,4.1238894]
[1743959945400,4.61504,1722.0,1721.6,4.1238894]
[1743959945717,4.61504,1722.0,1721.5,6.264931]
[1743959945718,0.55,1721.7,1721.4,4.0664]
[1743959945925,0.55,1721.8,1721.4,1.14392427]
[1743959946095,0.55,1721.8,1721.6,4.06578]
[1743959946737,0.55,1721.6,1721.3,4.06657]
[1743959947090,0.55,1721.6,1721.3,4.06654]
[1743959947329,0.55,1721.6,1721.4,4.06644]
[1743959948632,0.55,1721.8,1721.5,4.06609]
[1743959948813,7.06508,1722.0,1721.6,4.06582]
[1743959948985,0.55,1721.9,1721.6,4.06582]
[1743959949191,7.06508,1722.0,1721.7,4.06573]
[1743959949443,3.0,1722.0,1721.6,1.6292]
[1743959949591,4.06536,1721.9,1721.6,1.6292]
[1743959949787,4.61583,1721.7,1721.3,8.13311]
[1743959949991,0.55,1721.7,1721.3,0.813311]
[1743959950241,1.5165,1721.8,1721.5,4.06604]
[1743959950242,0.55,1721.8,1721.5,4.06604]
[1743959950390,0.55,1721.8,1721.4,4.12451471]
[1743959950595,0.55,1721.8,1721.4,4.12439471]
[1743959950787,0.55,1721.8,1721.5,0.54200226]
[1743959950996,8.68119,1721.8,1721.5,0.54200226]
[1743959951843,4.61551,1721.8,1721.5,0.54200226]
[1743959952337,4.61551,1721.8,1721.5,4.60819226]
[1743959952499,4.61551,1721.8,1721.5,0.54200226]
[1743959952500,0.55,1721.6,1721.5,0.54200226]
[1743959953017,4.5165,1722.0,1721.7,4.06571]
[1743959953194,3.0,1722.0,1721.7,4.06571]
[1743959953398,5.57224728,1722.1,1721.8,4.12338636]
[1743959953647,5.57224728,1722.1,1721.9,4.0652]
[1743959953800,5.57224728,1722.1,1721.9,5.7168]
[1743959953997,1.5625,1722.7,1722.0,4.06504]
[1743959954200,5.626,1722.7,1722.3,1.6516]
[1743959954400,4.06371,1722.6,1722.3,1.6516]
[1743959954701,5.626,1722.7,1722.3,1.6516]
[1743959954937,1.5625,1722.7,1722.3,5.71578]
[1743959955140,5.57224728,1722.8,1722.4,4.06404]
[1743959955335,0.55,1722.7,1722.4,4.06404]
[1743959955713,4.06338,1722.7,1722.3,6.287498]
[1743959956273,4.61366,1722.6,1722.3,1.6516]
[1743959956428,4.61366,1722.6,1722.1,9.78282]
[1743959956632,0.55,1722.4,1722.1,9.78282]
[1743959956858,0.55,1722.4,1722.2,0.5415593]
[1743959957062,0.55,1722.4,1722.2,4.6061193]
[1743959957376,0.55,1722.6,1722.2,5.69645419]
[1743959957538,4.61363,1722.6,1722.2,5.69645419]
[1743959957738,4.61363,1722.6,1722.2,5.63839523]
[1743959957938,4.61363,1722.6,1722.2,4.6059793]
[1743959958165,8.67744,1722.6,1722.2,4.06442]
[1743959958339,5.57224728,1722.8,1722.0,41.796]
[1743959958340,4.06437,1722.3,1722.0,41.796]
[1743959958540,0.55,1722.2,1722.0,41.796]
[1743959959249,0.55,1722.4,1722.2,4.06453]
[1743959959435,4.594,1722.7,1722.3,5.71759]
[1743959959436,1.594,1722.7,1722.3,5.71759]
[1743959959639,4.06399,1722.5,1722.0,50.53883386]
[1743959959844,0.55,1722.4,1722.1,4.06473]
[1743959960049,0.55,1722.4,1722.1,9.52508639]
[1743959960249,0.55,1722.4,1722.1,9.52501639]
[1743959960679,4.61422,1722.4,1722.1,5.46035639]
[1743959960861,0.55,1722.6,1722.3,4.06423]
[1743959961379,0.55,1722.6,1722.4,4.06409]
[1743959961574,0.55,1722.7,1722.4,4.06409]
[1743959961871,0.55,1722.7,1722.4,4.06402]
[1743959962091,13.69872728,1722.8,1722.4,5.71733]
[1743959962382,4.06343,1722.7,1722.4,1.6534]
[1743959962942,4.06343,1722.7,1722.4,5.71749]
[1743959963175,0.55,1722.7,1722.4,5.71749]
[1743959963580,0.55,1722.7,1722.4,6.695656]
[1743959964655,8.67699,1722.7,1722.4,1.6534]
[1743959964870,8.67696,1722.7,1722.3,4.06417]
[1743959965167,0.55,1722.5,1722.2,12.49996]
[1743959965636,0.55,1722.5,1722.2,5.71796]
[1743959965840,0.55,1722.6,1722.2,5.77586894]
[1743959966060,0.55,1722.7,1722.4,4.06393]
[1743959966471,4.6134,1722.7,1722.3,4.06429]
[1743959966774,0.55,1722.4,1722.2,11.09601583]
[1743959966973,0.55,1722.6,1722.3,4.06411]
[1743959967174,0.55,1722.6,1722.2,7.03145583]
[1743959967485,0.55,1722.6,1722.3,8.83149558]
[1743959967658,9.72003,1722.9,1722.5,4.06386]
[1743959967857,5.65693,1722.9,1722.5,8.12756]
[1743959968059,11.22890728,1723.1,1722.6,1.7114496]
[1743959968247,11.22890728,1723.1,1722.8,4.06305]
[1743959968248,7.16624728,1723.1,1722.8,4.06305]
[1743959968452,7.16624728,1723.1,1722.6,1.7114496]
[1743959968453,4.06279,1723.0,1722.6,5.717]
[1743959968652,0.55,1722.9,1722.6,5.717]
[1743959969166,11.22870728,1723.1,1722.6,7.372834]
[1743959969167,5.65646,1723.1,1722.6,7.372834]
[1743959969368,4.06246,1723.1,1722.7,4.0633]
[1743959969591,5.65599,1723.3,1722.6,3.309284]
[1743959969895,0.16251678,1723.2,1723.1,4.06233]
[1743959970251,5.65568,1723.5,1723.1,4.06233]
[1743959970651,0.16344885,1723.4,1723.1,4.06233]
[1743959970863,0.16344885,1723.4,1723.1,5.040139]
[1743959971073,0.16344885,1723.4,1723.2,4.06218]
[1743959971482,0.16344885,1723.4,1723.1,5.040139]
[1743959971660,0.55,1723.3,1723.1,5.040139]
[1743959972062,0.16354641,1723.2,1723.1,5.040139]
[1743959972597,0.55,1723.4,1723.1,5.040139]
[1743959972801,0.16401247,1723.3,1723.1,5.040139]
[1743959972973,0.16401247,1723.3,1723.2,0.5040139]
[1743959973777,0.16401247,1723.3,1723.2,4.5662139]
[1743959974768,0.16401247,1723.3,1723.2,0.5040139]
[1743959975381,0.16401247,1723.3,1723.2,4.5662139]
[1743959976771,0.16401247,1723.3,1723.2,0.5040139]
[1743959976972,0.55,1723.2,1723.0,41.78]
[1743959977229,0.7130803,1723.1,1723.0,41.78]
[1743959977505,0.7130803,1723.1,1723.0,45.84268]
[1743959978001,0.1630803,1723.1,1723.0,45.84268]
[1743959978171,0.55,1723.6,1723.3,4.06192]
[1743959978371,0.16494442,1723.5,1723.3,4.06192]
[1743959978578,0.71494442,1723.5,1723.2,4.0622]
[1743959979178,0.55,1723.4,1723.0,48.422143]
[1743959979384,0.55,1723.4,1723.0,52.484733]
[1743959979385,0.55,1723.2,1723.0,52.484733]
[1743959979585,0.1630803,1723.1,1723.0,56.547263]
[1743959979887,0.55,1723.4,1723.1,4.06244]
[1743959980099,0.55,1723.6,1723.2,0.406244]
[1743959980306,0.16401247,1723.3,1723.2,5.7138]
[1743959980507,0.55,1723.6,1723.5,4.0615]
[1743959981032,0.55,1723.6,1723.5,5.77111807]
[1743959981235,0.55,1723.6,1723.5,5.7131]
[1743959981537,4.61128,1723.6,1723.2,9.77592]
[1743959981834,0.55,1723.6,1723.2,5.71372]
[1743959982003,0.55,1723.5,1723.3,4.06183]
[1743959982330,0.55,1723.5,1723.2,5.71372]
[1743959982331,0.55,1723.6,1723.4,4.0616]
[1743959982513,0.55,1723.6,1723.5,4.46766]
[1743959982700,0.55,1723.6,1723.5,0.40616]
[1743959982902,1.1,1723.6,1723.5,0.40616]
[1743959983737,0.55,1723.5,1723.2,5.71359]
[1743959983932,0.55,1723.5,1723.2,9.77564]
[1743959984132,0.55,1723.5,1723.3,4.06187]
[1743959985313,0.55,1723.6,1723.3,4.06187]
[1743959985639,0.55,1723.6,1723.3,5.039416]
[1743959986008,0.55,1723.6,1723.4,4.06169]
[1743959986209,0.55,1723.6,1723.4,8.12331]
[1743959986625,0.55,1723.6,1723.5,4.0615]
[1743959987939,0.55,1723.6,1723.4,4.06162]
[1743959988145,0.55,1723.6,1723.5,0.406162]
[1743959988642,0.55,1723.6,1723.5,4.52567606]
[1743959988845,0.55,1723.6,1723.5,6.17727606]
[1743959989008,0.55,1723.6,1723.5,6.119262]
[1743959990543,0.55,1723.6,1723.5,6.65905226]
[1743959991631,0.55,1723.6,1723.5,6.71706156]
[1743959992140,0.55,1723.6,1723.5,6.65905226]
[1743959992545,0.55,1723.6,1723.5,7.0926303]
[1743959992713,0.55,1723.6,1723.5,6.65905226]
[1743959994523,0.55,1723.6,1723.5,6.71706387]
[1743959994724,0.55,1723.6,1723.5,7.08397527]
[1743959996021,0.55,1723.6,1723.5,6.65905226]
[1743959998258,0.55,1723.6,1723.5,6.71706058]
[1743959998862,0.55,1723.6,1723.5,6.65905226]
[1743959999962,0.55,1723.6,1723.5,6.71706058]
[1743960000449,0.55,1723.6,1723.5,6.65905226]
[1743960001764,0.55,1723.6,1723.5,0.94595226]
[1743960002158,1.1,1723.6,1723.5,0.53979026]
[1743960002358,5.16126,1723.6,1723.5,0.53979026]
[1743960002964,1.1,1723.6,1723.5,0.53979026]
[1743960003462,4.61126,1723.6,1723.5,0.53979026]
[1743960004833,4.6116,1723.5,1723.3,0.53979026]
[1743960005566,6.26893,1723.4,1723.3,0.53979026]
[1743960005764,0.55,1723.2,1723.1,0.53979026]
[1743960006147,4.6122,1723.2,1723.1,0.53979026]
[1743960006936,4.61244,1723.1,1723.0,0.53979026]
[1743960007249,0.55,1723.1,1723.0,0.53979026]
[1743960007983,1.6572,1723.2,1723.0,0.53979026]
[1743960008279,4.61198,1723.3,1723.0,1.00006029]
[1743960008463,6.26964,1723.1,1723.0,0.53979026]
[1743960008661,0.55,1722.9,1722.7,0.53979026]
[1743960008840,0.55,1722.9,1722.7,8.66626026]
[1743960009048,0.55,1722.9,1722.7,4.60300026]
[1743960009242,4.6127,1723.0,1722.7,5.32609029]
[1743960009441,1.6572,1723.1,1722.7,0.53979026]
[1743960009442,0.55,1722.8,1722.7,0.53979026]
[1743960009643,4.61315,1722.8,1722.7,0.53979026]
[1743960009843,10.37257033,1723.1,1722.7,0.53979026]
[1743960010070,4.6128,1723.0,1722.7,0.53979026]
[1743960010372,0.55,1722.8,1722.7,0.53979026]
[1743960010585,2.1411,1722.8,1722.7,0.53979026]
[1743960010880,6.20425,1722.8,1722.7,0.53979026]
[1743960011103,0.55,1722.6,1722.4,0.59784132]
[1743960011407,0.55,1722.6,1722.4,1.17077439]
[1743960012363,0.55,1722.6,1722.4,0.53979026]
[1743960012563,4.61367,1722.6,1722.4,0.53979026]
[1743960013160,0.55,1722.6,1722.4,0.53979026]
[1743960013365,0.55,1722.6,1722.4,0.50619652]
[1743960013802,0.55,1722.6,1722.3,5.71212]
[1743960014102,0.55,1722.6,1722.3,6.689774]
[1743960014603,0.55,1722.6,1722.4,4.06405]
[1743960014835,5.63008,1723.0,1722.5,8.18562153]
[1743960014984,9.69297,1723.0,1722.5,4.06371]
[1743960015184,4.06293,1722.9,1722.5,4.06371]
[1743960015998,4.06293,1722.9,1722.5,8.12743]
[1743960015999,0.55,1722.9,1722.5,8.12743]
[1743960016199,0.55,1722.9,1722.5,8.99821711]
[1743960016400,0.55,1722.9,1722.6,4.06359]
[1743960016579,0.55,1722.9,1722.7,4.06338]
[1743960016784,1.537,1723.2,1722.8,4.06304]
[1743960016989,4.06224,1723.2,1722.8,4.06304]
[1743960017803,0.55,1723.1,1722.8,4.06304]
[1743960018004,0.55,1723.1,1722.8,5.03834]
[1743960018176,5.57224728,1723.3,1722.9,4.06281]
[1743960018371,4.06206,1723.3,1722.9,4.06281]
[1743960018618,5.5988,1723.4,1722.9,8.12557]
[1743960018821,5.5988,1723.4,1722.9,9.710757]
[1743960019136,6.14826,1723.6,1723.2,4.06215]
[1743960019434,6.14826,1723.6,1723.1,5.68891]
[1743960019435,10.20965,1723.6,1723.1,5.68891]
[1743960019647,4.61126,1723.6,1723.2,4.68898533]
[1743960019827,0.55,1723.5,1723.2,8.75118533]
[1743960020035,4.61126,1723.6,1723.2,8.75118533]
[1743960020324,0.55,1723.6,1723.3,4.06197]
[1743960020517,0.55,1723.6,1723.2,4.630961]
[1743960020840,0.55,1723.6,1723.3,0.4630961]
[1743960021907,0.55,1723.6,1723.3,4.5250661]
[1743960022119,0.55,1723.6,1723.4,4.06162]
[1743960022322,0.55,1723.6,1723.4,5.68822]